bitfinex/quotes_ETHUSD_20250726
["timestamp","ask_amount","ask_price","bid_price","bid_amount"]
[1753498906649,2.67167984,3743.0,3742.8,0.9472]
[1753498907252,2.67159829,3743.1,3742.8,0.9472]
[1753498907646,2.67159829,3743.1,3742.9,0.4945]
[1753498907950,2.67165375,3743.0,3742.9,0.4945]
[1753498908520,2.67165375,3743.0,3742.8,0.4527]
[1753498908838,2.67165375,3743.0,3742.8,0.9238]
[1753498909656,2.67165375,3743.0,3742.6,0.4711]
[1753498910147,2.67165375,3743.0,3742.7,0.4711]
[1753498911056,2.67165375,3743.0,3742.7,0.9356]
[1753498911216,0.76,3743.5,3742.8,0.9356]
[1753498911416,0.4983,3744.1,3742.9,1.7268]
[1753498911754,2.67121049,3743.7,3743.0,3.60725059]
[1753498912057,3.0,3743.6,3743.1,0.9356]
[1753498912254,3.4983,3743.9,3743.2,0.9356]
[1753498912553,3.76,3744.2,3743.3,0.9356]
[1753498912853,3.0,3743.8,3743.4,0.4711]
[1753498913356,3.16915372,3744.2,3743.5,0.9356]
[1753498913526,3.0,3744.0,3743.6,0.4711]
[1753498913929,3.0,3744.0,3743.7,0.4711]
[1753498914333,3.0,3743.8,3743.7,0.4711]
[1753498914537,3.0,3744.0,3743.6,0.4645]
[1753498914860,2.67088255,3744.1,3743.3,2.67142126]
[1753498915055,0.4983,3744.0,3743.4,0.9356]
[1753498915559,2.67088255,3744.1,3743.5,0.4711]
[1753498916531,3.16911604,3744.2,3743.5,0.4711]
[1753498916722,2.67087535,3744.1,3743.5,0.4711]
[1753498917355,3.16911297,3744.2,3743.5,0.4711]
[1753498917556,5.67073361,3744.3,3743.6,0.7617]
[1753498917763,6.16903361,3744.3,3743.7,0.4711]
[1753498917970,6.4756,3744.6,3743.8,0.4645]
[1753498918167,2.67063405,3744.5,3743.8,0.4645]
[1753498918360,2.67066145,3744.4,3743.9,0.4711]
[1753498918534,2.67073648,3744.3,3743.9,0.4711]
[1753498918740,3.16897151,3744.4,3743.9,0.4711]
[1753498919082,2.67067151,3744.4,3743.9,0.9356]
[1753498919372,0.4983,3744.3,3743.9,0.9356]
[1753498919966,3.16903264,3744.3,3743.9,0.9356]
[1753498920167,0.9466,3744.2,3743.6,0.7617]
[1753498920368,3.1692293,3744.1,3743.6,0.7617]
[1753498920582,0.9466,3744.0,3743.6,0.7617]
[1753498920741,2.67099849,3744.0,3743.4,3.3277]
[1753498920945,0.9466,3743.9,3743.4,3.3277]
[1753498921247,0.4983,3743.8,3743.4,3.7988]
[1753498922446,0.4983,3743.8,3743.4,4.2633]
[1753498922738,3.61748229,3744.1,3743.5,0.9356]
[1753498923385,0.9466,3744.1,3743.5,3.60687518]
[1753498923761,0.4983,3744.1,3743.5,0.9356]
[1753498924143,3.1691822,3744.1,3743.5,0.9356]
[1753498924302,3.49227071,3744.4,3743.5,0.9356]
[1753498924303,2.6709524,3744.0,3743.5,0.4711]
[1753498924595,3.1692524,3744.0,3743.4,3.3277]
[1753498925403,0.4983,3744.0,3743.4,3.3277]
[1753498925706,2.67104513,3743.9,3743.4,3.7988]
[1753498926052,3.16934513,3743.9,3743.4,3.7922]
[1753498926270,3.16934513,3743.9,3743.5,0.4711]
[1753498926550,0.4983,3743.9,3743.5,0.4711]
[1753498927198,0.9466,3743.8,3743.5,2.527]
[1753498927494,0.4983,3743.7,3743.5,2.527]
[1753498928172,0.4983,3743.9,3743.5,2.527]
[1753498928555,0.4983,3743.9,3743.5,2.9981]
[1753498929492,0.4983,3743.9,3743.5,3.4626]
[1753498929795,3.169343,3743.9,3743.5,2.9981]
[1753498930902,0.4983,3743.9,3743.5,2.9981]
[1753498931103,0.4983,3743.9,3743.5,3.4626]
[1753498931406,2.67094402,3744.0,3743.6,0.4711]
[1753498931902,3.16924402,3744.0,3743.6,0.4711]
[1753498932688,2.67103025,3743.9,3743.5,2.9915]
[1753498932874,0.4983,3743.9,3743.5,3.4626]
[1753498933198,2.67095686,3744.0,3743.6,0.4711]
[1753498933501,0.4983,3744.0,3743.6,0.4711]
[1753498934008,3.16925356,3744.0,3743.6,0.4711]
[1753498934419,2.67101425,3743.9,3743.6,0.4711]
[1753498934615,3.11911265,3744.2,3743.5,2.527]
[1753498934907,0.4983,3744.0,3743.5,2.527]
[1753498935517,2.67078173,3744.3,3743.6,0.9356]
[1753498935684,2.67080444,3744.2,3743.7,0.9356]
[1753498935883,2.67080444,3744.2,3743.8,0.9356]
[1753498936078,2.67080444,3744.2,3743.8,0.4645]
[1753498936318,2.67080444,3744.2,3743.9,0.4711]
[1753498936810,0.4983,3744.4,3744.0,0.4711]
[1753498936974,5.67058784,3744.5,3744.0,0.4711]
[1753498937171,0.4983,3744.3,3743.9,0.4645]
[1753498937378,0.4983,3744.3,3743.9,0.4711]
[1753498937674,0.4803,3744.2,3743.7,0.9468]
[1753498937886,2.67093465,3744.1,3743.7,0.4645]
[1753498938103,3.15111958,3744.2,3743.8,0.4823]
[1753498938485,3.15111958,3744.2,3743.8,0.9485]
[1753498938884,2.67087141,3744.1,3743.8,0.9485]
[1753498939309,0.4803,3744.1,3743.6,0.4662]
[1753498939611,3.15124017,3744.0,3743.6,0.4662]
[1753498939799,3.15124017,3744.0,3743.5,2.523]
[1753498939800,2.67122555,3743.6,3743.5,2.523]
[1753498939984,3.15152555,3743.6,3743.5,2.523]
[1753498940188,3.61672555,3743.6,3743.5,2.523]
[1753498940501,2.6713706,3743.4,3743.1,2.523]
[1753498940987,3.1516706,3743.4,3743.1,2.523]
[1753498941190,0.4803,3743.4,3743.1,2.523]
[1753498941506,3.1516837,3743.4,3743.1,2.523]
[1753498941826,3.15168011,3743.4,3743.1,2.523]
[1753498942107,2.67138011,3743.4,3743.1,3.0053]
[1753498943108,2.67147528,3743.3,3743.1,2.523]
[1753498943811,2.671511,3743.2,3743.1,2.523]
[1753498944388,0.4803,3743.4,3743.1,2.523]
[1753498944587,3.15168903,3743.4,3743.1,2.523]
[1753498945200,2.67138903,3743.4,3743.1,3.0053]
[1753498946028,2.671511,3743.2,3743.1,2.523]
[1753498946374,2.67145126,3743.3,3743.1,2.523]
[1753498947620,2.671511,3743.2,3743.1,2.523]
[1753498947820,2.67145942,3743.3,3743.1,2.523]
[1753498948191,2.671511,3743.2,3743.1,2.523]
[1753498948788,3.151811,3743.2,3743.1,2.523]
[1753498949728,0.7862,3743.8,3743.1,2.523]
[1753498949926,2.67149217,3743.3,3743.1,3.0053]
[1753498950108,2.67149217,3743.3,3743.2,0.4823]
[1753498951529,2.67138291,3743.4,3743.2,0.4823]
[1753498951744,2.67143963,3743.3,3743.2,0.4823]
[1753498952432,2.67137091,3743.4,3743.2,0.4823]
[1753498952832,2.67143963,3743.3,3743.2,0.4823]
[1753498954541,2.67143963,3743.3,3743.1,2.9892]
[1753498954834,2.67143963,3743.3,3743.1,3.4715]
[1753498956337,2.671511,3743.2,3743.1,3.4715]
[1753498956836,2.67144178,3743.3,3743.1,3.4715]
[1753498958209,2.671511,3743.2,3743.1,3.4715]
[1753498958543,2.67145996,3743.3,3743.1,3.4715]
[1753498961747,2.67138371,3743.4,3743.1,3.4715]
[1753498962454,2.67131617,3743.5,3743.2,0.9485]
[1753498962659,2.67131617,3743.5,3743.2,0.4823]
[1753498963622,2.6713842,3743.4,3743.2,0.4823]
[1753498963953,2.67143963,3743.3,3743.1,2.9892]
[1753498964153,2.67138565,3743.4,3743.1,2.9892]
[1753498964352,2.67138565,3743.4,3743.1,3.4715]
[1753498965656,3.15161402,3743.5,3743.1,3.4715]
[1753498965848,2.67131402,3743.5,3743.1,3.4715]
[1753498966864,2.67131402,3743.5,3743.2,0.4823]
[1753498967062,0.4803,3743.7,3743.2,0.9485]
[1753498967226,2.6712353,3743.6,3743.3,0.4823]
[1753498967426,2.6712353,3743.6,3743.3,0.9485]
[1753498967935,3.0,3743.9,3743.1,3.3495]
[1753498968140,3.0,3744.0,3743.4,0.9395]
[1753498968337,3.0,3744.1,3743.4,0.4704]
[1753498968540,2.67087088,3744.1,3743.5,1.2956]
[1753498968860,3.0,3744.3,3743.6,0.9395]
[1753498969064,3.0,3744.3,3743.6,3.4555]
[1753498969260,2.67085563,3744.2,3743.7,0.9395]
[1753498969566,2.67085563,3744.2,3743.8,0.4691]
[1753498969739,3.0,3744.0,3743.8,0.4691]
[1753498969939,1.2479,3744.4,3743.6,2.516]
[1753498969940,3.0,3744.1,3743.6,2.516]
[1753498970151,2.67109925,3743.8,3743.2,1.2447]
[1753498970360,2.67109925,3743.8,3743.3,2.515]
[1753498970566,3.16589925,3743.8,3743.3,2.515]
[1753498970863,3.16589925,3743.8,3743.4,0.4691]
[1753498971530,0.4948,3743.8,3743.4,0.4691]
[1753498972166,3.16588317,3743.8,3743.4,0.4691]
[1753498973466,2.67124582,3743.6,3743.4,0.4691]
[1753498973647,2.67136827,3743.4,3743.3,2.515]
[1753498973841,3.59786827,3743.4,3743.3,2.515]
[1753498975377,2.67152324,3743.2,3743.0,2.514]
[1753498975580,3.16632324,3743.2,3742.9,2.514]
[1753498975939,2.67145085,3743.3,3742.9,2.9831]
[1753498976139,2.67145085,3743.3,3742.9,2.9844]
[1753498976382,2.67145085,3743.3,3743.0,0.4691]
[1753498977047,2.67138496,3743.4,3743.1,0.4691]
[1753498979085,2.67138496,3743.4,3743.1,0.9395]
[1753498980284,2.67138496,3743.4,3743.1,0.4691]
[1753498981243,3.7629,3743.8,3742.9,2.514]
[1753498981443,3.0,3743.9,3743.1,0.7756]
[1753498981648,3.0,3744.1,3743.4,2.67135116]
[1753498981854,5.67087385,3744.1,3743.5,2.512]
[1753498982054,2.67078503,3744.3,3743.6,0.9395]
[1753498982257,2.67079619,3744.3,3743.8,0.7859]
[1753498982594,2.67080925,3744.2,3743.8,0.7859]
[1753498982787,2.67071465,3744.4,3743.8,1.255]
[1753498983004,2.67074319,3744.3,3743.9,0.9395]
[1753498983175,2.67074319,3744.3,3743.9,0.4704]
[1753498983377,2.67074319,3744.3,3744.0,0.4691]
[1753498983552,2.67081609,3744.2,3743.9,0.4704]
[1753498983751,3.8071,3744.5,3743.8,0.7859]
[1753498983955,2.67093091,3744.1,3743.8,0.7859]
[1753498984197,3.16561791,3744.2,3743.8,0.7859]
[1753498984691,2.67088007,3744.1,3743.7,0.4691]
[1753498984881,3.16568945,3744.1,3743.7,0.4691]
[1753498985355,2.67094691,3744.0,3743.7,0.4691]
[1753498985992,3.8071,3744.5,3743.3,0.7522]
[1753498985993,2.67122946,3743.6,3743.3,0.7522]
[1753498986327,3.8071,3744.5,3743.4,2.511]
[1753498986328,0.4948,3743.7,3743.4,2.511]
[1753498986868,2.67113741,3743.8,3743.4,2.9801]
[1753498987065,2.67113741,3743.8,3743.3,0.7522]
[1753498987271,0.4948,3743.7,3743.4,2.51]
[1753498988105,3.16595469,3743.7,3743.4,2.51]
[1753498988406,0.4948,3743.6,3743.4,2.51]
[1753498988578,2.67129691,3743.5,3743.4,2.51]
[1753498988781,3.16609691,3743.5,3743.4,2.51]
[1753498989507,3.16597269,3743.7,3743.4,2.51]
[1753498990086,2.67124201,3743.6,3743.4,2.51]
[1753498990685,2.67123441,3743.6,3743.4,2.9791]
[1753498991094,0.4948,3743.6,3743.4,2.51]
[1753498991415,2.67117416,3743.7,3743.5,0.4691]
[1753498991623,2.67109118,3743.8,3743.5,0.9395]
[1753498991794,2.67109118,3743.8,3743.6,0.9395]
[1753498992102,2.67296445,3744.0,3743.7,0.9395]
[1753498992271,0.002,3744.0,3743.8,0.9395]
[1753498992472,0.002,3744.0,3743.9,0.9395]
[1753498995992,0.002,3744.0,3743.9,0.4691]
[1753498997792,0.002,3744.0,3743.7,2.9794]
[1753498998041,0.002,3744.0,3743.7,3.4334]
[1753498998205,0.002,3744.0,3743.7,2.509]
[1753498998413,3.14917971,3743.9,3743.6,2.508]
[1753498998729,0.4781,3743.8,3743.6,2.508]
[1753498998897,3.14918453,3743.8,3743.6,2.508]
[1753498999102,0.4781,3743.7,3743.6,2.508]
[1753498999333,3.1492542,3743.7,3743.6,2.508]
[1753499000031,0.4781,3743.7,3743.6,2.508]
[1753499000232,2.67110439,3743.8,3743.6,2.508]
[1753499000406,3.61865395,3743.9,3743.6,2.508]
[1753499000909,3.14915395,3743.9,3743.6,2.508]
[1753499001307,2.67105395,3743.9,3743.6,2.508]
[1753499002422,2.67105395,3743.9,3743.6,2.962]
[1753499004003,2.67295917,3744.0,3743.6,2.962]
[1753499005151,2.67108616,3743.8,3743.6,2.962]
[1753499005638,2.67101731,3743.9,3743.6,2.962]
[1753499006140,2.67109453,3743.8,3743.6,2.962]
[1753499006302,2.6710277,3743.9,3743.6,2.962]
[1753499006939,0.002,3744.0,3743.8,0.7807]
[1753499007235,0.002,3744.0,3743.9,0.4544]
[1753499009847,0.002,3744.0,3743.7,0.9084]
[1753499010144,0.002,3744.0,3743.7,0.454]
[1753499010342,0.002,3744.0,3743.8,0.4544]
[1753499010510,0.002,3744.0,3743.8,0.9084]
[1753499011128,7.45781151,3743.9,3743.8,0.454]
[1753499012045,7.45781151,3743.9,3743.1,0.454]
[1753499012046,3.0,3743.6,3743.1,0.454]
[1753499012413,2.67122953,3743.6,3743.0,0.8131]
[1753499012612,2.67122953,3743.6,3743.2,0.454]
[1753499012829,2.67122953,3743.6,3743.1,0.4544]
[1753499012830,3.0,3743.5,3743.1,0.4544]
[1753499013036,2.671511,3743.2,3743.0,1.2671]
[1753499013633,2.671511,3743.2,3742.8,0.4544]
[1753499013634,2.67160803,3743.1,3742.8,0.4544]
[1753499013832,3.14949722,3743.4,3742.8,0.9084]
[1753499014312,2.67143963,3743.3,3742.8,0.9084]
[1753499014512,2.67143963,3743.3,3742.6,0.001]
[1753499014513,1.233,3743.3,3742.6,0.001]
[1753499014713,2.67177688,3742.9,3742.7,2.504]
[1753499015954,2.67166966,3743.0,3742.7,2.504]
[1753499016117,2.67166966,3743.0,3742.7,2.958]
[1753499017747,3.14961729,3743.2,3742.7,3.4124]
[1753499017748,2.6715866,3743.1,3742.7,3.4124]
[1753499017953,2.6715866,3743.1,3742.8,0.454]
[1753499018461,2.6715866,3743.1,3742.8,0.9084]
[1753499018628,2.6715866,3743.1,3742.9,0.454]
[1753499020165,6.64809765,3743.8,3742.9,0.454]
[1753499020166,0.803,3743.7,3742.9,0.9084]
[1753499020329,0.4781,3743.9,3743.0,1.6894]
[1753499020530,3.0,3743.6,3743.1,0.9084]
[1753499020852,3.0,3743.8,3743.2,0.9084]
[1753499021418,0.805,3744.0,3743.2,0.9084]
[1753499021615,2.67107295,3743.9,3743.3,0.9084]
[1753499021861,0.002,3744.0,3743.4,0.9084]
[1753499022232,0.002,3744.0,3743.5,0.454]
[1753499022638,0.002,3744.0,3743.6,0.9084]
[1753499022814,2.67101161,3743.9,3743.6,0.9084]
[1753499023019,2.67294748,3744.0,3743.6,0.9084]
[1753499023420,3.15104748,3744.0,3743.3,0.4544]
[1753499023625,3.15104748,3744.0,3743.3,0.9084]
[1753499023836,2.67114974,3743.8,3743.4,0.454]
[1753499024254,2.67114974,3743.8,3743.5,0.454]
[1753499025959,2.67135982,3743.5,3743.2,2.503]
[1753499026120,2.67136888,3743.4,3743.2,2.503]
[1753499026657,0.4781,3743.5,3743.2,2.503]
[1753499026876,2.67116856,3743.7,3743.3,0.454]
[1753499027064,3.14919182,3743.8,3743.4,0.454]
[1753499027228,2.67115999,3743.7,3743.4,0.9084]
[1753499029063,2.67123182,3743.6,3743.4,0.9084]
[1753499029240,2.67117152,3743.7,3743.4,0.9084]
[1753499030986,2.67117152,3743.7,3743.4,0.9272]
[1753499032245,2.67124393,3743.6,3743.4,0.9272]
[1753499032450,2.67116479,3743.7,3743.4,0.9272]
[1753499033586,2.67116479,3743.7,3743.4,0.4728]
[1753499033790,3.12289566,3743.8,3743.4,0.4728]
[1753499033975,3.12289566,3743.8,3743.4,0.9016]
[1753499034179,2.67120445,3743.7,3743.4,0.4728]
[1753499034684,2.67125833,3743.6,3743.4,0.9016]
[1753499035050,2.6711738,3743.7,3743.4,0.9016]
[1753499035250,2.67125098,3743.6,3743.4,0.9016]
[1753499036184,0.002,3743.9,3743.5,1.269]
[1753499036491,0.002,3743.9,3743.6,0.9016]
[1753499036859,0.002,3743.9,3743.7,0.9016]
[1753499037275,0.002,3743.9,3743.8,0.9016]
[1753499037474,0.002,3743.9,3743.8,1.6978]
[1753499039483,0.002,3743.9,3743.8,4.36888285]
[1753499039885,0.002,3743.9,3743.8,4.39559367]
[1753499040667,0.002,3743.9,3743.8,4.36888285]
[1753499041261,0.002,3743.9,3743.8,1.6978]
[1753499041766,0.002,3743.9,3743.7,2.499]
[1753499041969,0.9023,3743.8,3743.7,2.499]
[1753499042369,3.57338285,3743.8,3743.7,2.499]
[1753499043075,0.9023,3743.8,3743.7,2.499]
[1753499043889,3.57338285,3743.8,3743.7,2.499]
[1753499046494,3.12288285,3743.8,3743.7,2.499]
[1753499046665,3.57338285,3743.8,3743.7,2.499]
[1753499048499,2.67147334,3743.3,3742.8,1.2978]
[1753499048793,2.67147334,3743.3,3742.9,2.9688]
[1753499048794,3.12327334,3743.3,3742.9,2.9688]
[1753499048962,3.12327334,3743.3,3742.9,3.3976]
[1753499049163,2.67138887,3743.4,3742.9,2.9248]
[1753499049460,2.67144664,3743.3,3743.0,0.4728]
[1753499049994,0.4518,3743.4,3743.0,0.4728]
[1753499049995,2.67151548,3743.2,3743.0,0.4728]
[1753499050299,2.67146199,3743.3,3742.9,2.9248]
[1753499050463,0.4518,3743.2,3742.9,2.496]
[1753499051000,2.67164294,3743.1,3742.9,2.496]
[1753499051301,3.12345375,3743.0,3742.9,2.496]
[1753499052878,3.57395375,3743.0,3742.9,2.496]
[1753499053572,3.12345375,3743.0,3742.9,2.496]
[1753499053988,1.2479,3743.3,3742.9,2.496]
[1753499054191,2.67165375,3743.0,3742.9,2.496]
[1753499055391,3.12345375,3743.0,3742.9,2.496]
[1753499056701,3.57395375,3743.0,3742.9,2.496]
[1753499057205,3.12345375,3743.0,3742.9,2.496]
[1753499058601,2.67165375,3743.0,3742.9,2.496]
[1753499058899,3.16605375,3743.0,3742.9,2.496]
[1753499060894,2.6718679,3742.7,3742.6,0.001]
[1753499061097,3.4802679,3742.7,3742.6,0.001]
[1753499061276,3.9746679,3742.7,3742.6,0.001]
[1753499061478,4.4322679,3742.7,3742.6,0.001]
[1753499061676,7.0302679,3742.7,3742.6,0.001]
[1753499061880,7.9822679,3742.7,3742.6,0.001]
[1753499064001,7.98119922,3742.7,3742.6,0.001]
[1753499064201,10.47519922,3742.7,3742.6,0.001]
[1753499068724,7.47519922,3742.7,3742.6,0.001]
[1753499069014,10.47519922,3742.7,3742.6,0.001]
[1753499071413,2.67236771,3742.0,3741.9,0.001]
[1753499071807,6.22236771,3742.0,3741.9,0.001]
[1753499072111,7.17436771,3742.0,3741.9,0.001]
[1753499072328,4.17436771,3742.0,3741.9,0.001]
[1753499072816,7.17436771,3742.0,3741.9,0.001]
[1753499073483,6.71676771,3742.0,3741.9,0.001]
[1753499075490,7.99456771,3742.0,3741.9,1e-08]
[1753499076381,7.53696771,3742.0,3741.9,1e-08]
[1753499077187,10.02796771,3742.0,3741.9,1e-08]
[1753499077611,9.53356771,3742.0,3741.9,1e-08]
[1753499077824,10.48556771,3742.0,3741.9,1e-08]
[1753499078717,7.99456771,3742.0,3741.9,1e-08]
[1753499078917,9.53356771,3742.0,3741.9,1e-08]
[1753499079223,8.71336771,3742.0,3741.9,0.46090001]
[1753499079520,8.71336771,3742.0,3741.9,0.91490001]
[1753499080194,6.22236771,3742.0,3741.9,0.91490001]
[1753499080517,5.67236771,3742.0,3741.9,0.91490001]
[1753499083688,7.49416771,3742.0,3741.9,1e-08]
[1753499084087,9.98416771,3742.0,3741.9,1e-08]
[1753499085213,9.48976771,3742.0,3741.9,1e-08]
[1753499087616,6.99976771,3742.0,3741.9,1e-08]
[1753499087798,9.48976771,3742.0,3741.9,1e-08]
[1753499088228,6.99976771,3742.0,3741.9,1e-08]
[1753499088527,9.48976771,3742.0,3741.9,1e-08]
[1753499089332,8.71236771,3742.0,3741.9,1e-08]
[1753499089628,5.67236771,3742.0,3741.9,0.91910001]
[1753499089826,3.0,3742.0,3741.9,1.69020001]
[1753499090127,2.67207538,3742.5,3741.9,1.69020001]
[1753499090335,2.67206032,3742.5,3742.0,0.9191]
[1753499090632,3.0,3742.4,3742.1,0.7711]
[1753499090793,0.002,3743.0,3742.2,0.9191]
[1753499090993,0.002,3743.0,3742.3,0.7711]
[1753499091199,2.67177674,3742.9,3742.3,0.7711]
[1753499091422,2.67177674,3742.9,3742.4,0.9191]
[1753499091621,2.67180823,3742.8,3742.5,0.9191]
[1753499091822,2.67180823,3742.8,3742.6,0.9191]
[1753499092030,2.67180823,3742.8,3742.7,0.9191]
[1753499094318,2.67173736,3742.9,3742.7,0.9191]
[1753499094635,2.67173736,3742.9,3742.8,0.9191]
[1753499095727,2.67373736,3742.9,3742.8,0.9191]
[1753499096748,2.67373736,3742.9,3742.8,0.4865]
[1753499097036,2.67208208,3742.4,3742.3,1.2037]
[1753499097216,2.67202904,3742.5,3742.3,1.2037]
[1753499097416,2.67202904,3742.5,3742.4,0.9191]
[1753499097617,2.67190837,3742.7,3742.4,0.9191]
[1753499097933,2.67190837,3742.7,3742.5,0.9191]
[1753499098138,2.67190837,3742.7,3742.6,0.4865]
[1753499098439,2.67190837,3742.7,3742.6,0.9191]
[1753499100323,2.67181529,3742.8,3742.3,0.7711]
[1753499100529,2.67181529,3742.8,3742.6,0.9191]
[1753499100723,2.67181529,3742.8,3742.3,0.7711]
[1753499100903,2.67181529,3742.8,3742.7,0.9191]
[1753499102061,2.67205225,3742.5,3742.4,0.4326]
[1753499102346,2.67208208,3742.4,3742.3,0.7711]
[1753499102846,2.67208208,3742.4,3742.3,1.6902]
[1753499103146,4.52698795,3742.6,3742.0,0.7791]
[1753499103328,2.67220531,3742.3,3742.1,0.9191]
[1753499103504,2.67220531,3742.3,3742.0,0.7791]
[1753499103505,2.67220531,3742.3,3742.2,0.9191]
[1753499104336,2.67220531,3742.3,3742.2,0.4865]
[1753499105661,2.67220531,3742.3,3742.0,0.7791]
[1753499105662,2.67228703,3742.2,3742.0,0.7791]
[1753499106062,2.67228703,3742.2,3742.1,0.4865]
[1753499106561,2.67228703,3742.2,3741.9,1e-08]
[1753499106761,2.67236771,3742.0,3741.9,1e-08]
[1753499107442,3.69936771,3742.0,3741.9,1e-08]
[1753499107645,7.16246771,3742.0,3741.9,1e-08]
[1753499108734,9.64746771,3742.0,3741.9,1e-08]
[1753499108939,10.42386771,3742.0,3741.9,1e-08]
[1753499109259,7.93886771,3742.0,3741.9,1e-08]
[1753499110258,10.42386771,3742.0,3741.9,1e-08]
[1753499112867,11.02385566,3741.3,3741.2,1e-08]
[1753499113070,13.50885566,3741.3,3741.2,1e-08]
[1753499113434,14.44895566,3741.3,3741.2,1e-08]
[1753499119282,13.98585566,3741.3,3741.2,1e-08]
[1753499119700,11.50085566,3741.3,3741.2,1e-08]
[1753499119978,13.98485566,3741.3,3741.2,1e-08]
[1753499121558,13.50785566,3741.3,3741.2,1e-08]
[1753499122057,14.00725566,3741.3,3741.2,1e-08]
[1753499123274,13.50785566,3741.3,3741.2,1e-08]
[1753499123979,13.50685566,3741.3,3741.2,1e-08]
[1753499124146,11.02385566,3741.3,3741.2,1e-08]
[1753499124347,13.50685566,3741.3,3741.2,1e-08]
[1753499124803,11.02385566,3741.3,3741.2,1e-08]
[1753499124967,13.50685566,3741.3,3741.2,1e-08]
[1753499128070,12.68285566,3741.3,3741.2,1e-08]
[1753499128406,12.68285566,3741.3,3741.2,0.47810001]
[1753499128986,12.68285566,3741.3,3741.2,1e-08]
[1753499129180,10.19985566,3741.3,3741.2,1e-08]
[1753499129386,12.68185566,3741.3,3741.2,1e-08]
[1753499131007,13.18125566,3741.3,3741.2,1e-08]
[1753499133507,12.68185566,3741.3,3741.2,1e-08]
[1753499135892,12.68085566,3741.3,3741.2,1e-08]
[1753499136095,8.70386771,3741.3,3741.2,0.91360001]
[1753499137340,6.22286771,3741.3,3741.2,0.91360001]
[1753499137617,8.70386771,3741.3,3741.2,0.91360001]
[1753499137919,6.22286771,3741.3,3741.2,0.91360001]
[1753499138346,3.22286771,3741.3,3741.2,0.91360001]
[1753499138642,5.67286771,3741.3,3741.2,0.91360001]
[1753499138939,0.002,3741.3,3741.2,0.91360001]
[1753499139319,0.002,3741.3,3741.2,1.69940001]
[1753499142508,0.002,3741.3,3741.2,4.37233917]
[1753499146542,0.002,3741.3,3741.2,4.39906856]
[1753499150441,0.002,3741.3,3741.2,6.87806856]
[1753499150611,0.002,3741.3,3741.2,6.85133917]
[1753499167269,0.002,3741.3,3741.2,5.93773917]
[1753499167767,0.002,3741.3,3741.2,6.41113917]
[1753499167973,0.002,3741.3,3741.2,5.93773917]
[1753499169171,0.4639,3741.3,3741.2,5.93373917]
[1753499169369,0.002,3741.3,3741.2,5.93373917]
[1753499170445,0.002,3741.3,3741.2,6.40713917]
[1753499173057,0.002,3741.3,3741.2,6.84983917]
[1753499175700,0.002,3741.3,3741.2,5.93373917]
[1753499175999,0.002,3741.3,3741.2,6.40713917]
[1753499177696,0.002,3741.3,3741.2,6.84983917]
[1753499179396,0.002,3741.3,3741.2,3.26080001]
[1753499181773,0.002,3741.3,3741.2,2.47500001]
[1753499181977,0.9284,3741.3,3741.2,2.47300001]
[1753499182186,3.60126771,3741.3,3741.2,2.47300001]
[1753499182694,4.35906771,3741.3,3741.2,2.47300001]
[1753499183781,7.90906771,3741.3,3741.2,2.47300001]
[1753499185305,7.90906771,3741.3,3741.2,1e-08]
[1753499185614,7.90906771,3741.3,3741.2,2.47200001]
[1753499188334,7.90906771,3741.3,3741.2,1e-08]
[1753499198032,11.88605566,3741.3,3741.2,1e-08]
[1753499198711,7.05563916,3741.2,3741.1,1e-08]
[1753499198907,10.45303916,3741.2,3741.1,1e-08]
[1753499203004,10.45303916,3741.2,3741.1,1e-08]
[1753499204659,40.45303916,3741.2,3741.1,1e-08]
[1753499204961,7.01953937,3740.5,3740.4,1e-08]
[1753499205148,9.48953937,3740.5,3740.4,1e-08]
[1753499205344,10.41593937,3740.5,3740.4,1e-08]
[1753499206567,9.98643937,3740.5,3740.4,1e-08]
[1753499207305,10.41593937,3740.5,3740.4,1e-08]
[1753499207600,0.1054,3739.4,3737.1,0.55]
[1753499207754,0.55,3737.0,3735.0,0.7802]
[1753499207956,0.55,3735.6,3735.5,0.436]
[1753499208155,0.55,3735.6,3733.7,4.0]
[1753499208156,2.67639715,3736.4,3735.1,4.78429925]
[1753499208352,2.563,3736.6,3735.2,5.80951225]
[1753499208556,2.67655909,3736.2,3735.3,5.60033338]
[1753499208837,2.6770178,3735.5,3735.4,0.02677089]
[1753499209073,3.0,3736.0,3734.4,0.02677806]
[1753499209274,3.0,3736.1,3734.5,3.852]
[1753499209436,4.46908795,3736.6,3732.8,2.6788978]
[1753499209437,3.0,3735.9,3734.6,3.852]
[1753499209641,5.67633304,3736.5,3734.7,6.8722]
[1753499209870,3.0,3735.7,3734.8,4.2922]
[1753499210075,3.0,3735.6,3734.9,0.90297447]
[1753499210375,3.0,3735.7,3735.0,0.8762]
[1753499210581,3.0,3735.7,3734.9,0.02677447]
[1753499210785,3.0,3735.7,3735.1,0.8762]
[1753499210943,0.55,3736.3,3735.2,0.8762]
[1753499211275,2.67708946,3735.4,3735.3,0.8762]
[1753499212449,2.67708946,3735.4,3735.3,0.436]
[1753499212866,2.67708946,3735.4,3735.3,3.014]
[1753499214145,2.67708946,3735.4,3735.3,2.8743]
[1753499214941,2.67708946,3735.4,3735.3,2.577]
[1753499215380,2.67708946,3735.4,3735.3,3.0172]
[1753499215562,2.67708946,3735.4,3735.3,2.577]
[1753499216380,2.67708946,3735.4,3735.3,3.013]
[1753499216753,2.67708946,3735.4,3735.3,3.012]
[1753499217279,0.4921,3735.9,3735.3,3.012]
[1753499217478,2.6770779,3735.5,3735.3,3.012]
[1753499217646,2.67708946,3735.4,3735.3,3.012]
[1753499218703,2.67702784,3735.5,3735.3,0.436]
[1753499218850,2.67708946,3735.4,3735.3,0.436]